bitfinex/quotes_BTCUSD_20241202
["timestamp","ask_amount","ask_price","bid_price","bid_amount"]
[1733158513680,0.00190792,96462.0,96461.0,1.5294639]
[1733158513879,0.00190792,96462.0,96461.0,1.5204639]
[1733158514074,0.00190792,96462.0,96461.0,1.5294639]
[1733158515131,0.0017292,96500.0,96475.0,0.70960902]
[1733158515133,0.20727,96493.0,96475.0,0.50960902]
[1733158515367,0.20729,96484.0,96475.0,1.13096195]
[1733158515610,0.00098129,96499.0,96475.0,1.13096195]
[1733158515611,0.00232005,96476.0,96475.0,0.7]
[1733158515875,0.00232005,96476.0,96475.0,0.85230202]
[1733158516861,0.00232005,96476.0,96475.0,0.709]
[1733158517103,0.00232005,96476.0,96475.0,0.7]
[1733158517353,0.00232005,96476.0,96475.0,0.709]
[1733158517597,0.00232005,96476.0,96475.0,0.78154298]
[1733158518118,0.00232005,96476.0,96475.0,0.919845]
[1733158518348,0.00232005,96476.0,96475.0,0.220845]
[1733158518593,0.00232005,96476.0,96475.0,0.15930202]
[1733158518807,0.00232005,96476.0,96475.0,0.85930202]
[1733158519233,0.00232005,96476.0,96475.0,0.15930202]
[1733158519441,0.00232005,96476.0,96475.0,0.15830202]
[1733158519647,0.00232005,96476.0,96475.0,0.15230202]
[1733158519848,0.00232005,96476.0,96475.0,0.16803222]
[1733158521521,0.00232005,96476.0,96475.0,0.001]
[1733158521747,0.08070134,96476.0,96475.0,0.001]
[1733158521962,0.20654655,96476.0,96475.0,0.001]
[1733158522178,0.36601367,96476.0,96475.0,0.001]
[1733158522427,0.41363238,96476.0,96475.0,0.001]
[1733158522872,0.15,96459.0,96437.0,0.15180202]
[1733158523101,0.15,96459.0,96426.0,0.0008647]
[1733158523102,0.1863982,96450.0,96426.0,0.0008647]
[1733158523322,0.00098129,96449.0,96440.0,0.15180202]
[1733158523535,0.207377,96443.0,96440.0,0.15180202]
[1733158523764,0.20738,96441.0,96440.0,0.15180202]
[1733158523981,0.20738,96441.0,96440.0,0.16698222]
[1733158524633,0.20738,96441.0,96440.0,0.002]
[1733158524883,0.20836129,96441.0,96440.0,0.00017672]
[1733158525520,0.23136129,96441.0,96440.0,0.00017672]
[1733158525727,0.23038,96441.0,96440.0,0.00017672]
[1733158526131,0.23038,96441.0,96440.0,0.00917672]
[1733158526565,0.23038,96441.0,96440.0,0.00617672]
[1733158526775,0.23138,96441.0,96440.0,0.00617672]
[1733158526980,0.23138,96441.0,96440.0,0.00017672]
[1733158527402,0.20838,96441.0,96440.0,0.00017672]
[1733158527610,0.20936129,96441.0,96440.0,0.00017672]
[1733158528061,0.20838,96441.0,96440.0,0.00017672]
[1733158528276,0.20838,96441.0,96440.0,0.15197874]
[1733158528482,0.20838,96441.0,96440.0,0.16717661]
[1733158529109,0.001,96441.0,96440.0,0.16717661]
[1733158529542,0.00198129,96441.0,96440.0,0.00017672]
[1733158529968,0.001,96441.0,96440.0,0.00017672]
[1733158530193,0.001,96441.0,96440.0,0.15197874]
[1733158530612,0.001,96441.0,96440.0,0.00017672]
[1733158530816,0.00198129,96441.0,96440.0,0.00017672]
[1733158531023,0.001,96441.0,96440.0,0.00017672]
[1733158531245,0.00198129,96441.0,96440.0,0.00017672]
[1733158531467,0.20439829,96443.0,96440.0,0.00017672]
[1733158531674,0.20439829,96443.0,96440.0,0.01537459]
[1733158531675,0.41177529,96443.0,96440.0,0.01537459]
[1733158531889,0.41177529,96443.0,96440.0,0.00104122]
[1733158532748,0.41277529,96443.0,96440.0,0.00104122]
[1733158533164,0.35738,96441.0,96440.0,0.00104122]
[1733158533384,0.58462521,96441.0,96440.0,0.00104122]
[1733158538016,0.73565465,96441.0,96440.0,0.00104122]
[1733158538235,0.63282319,96441.0,96440.0,2.2e-07]
[1733158539076,0.64327948,96441.0,96440.0,2.2e-07]
[1733158539295,0.5950815,96441.0,96440.0,2.2e-07]
[1733158539933,0.5950815,96441.0,96440.0,0.00100022]
[1733158540632,0.58562521,96441.0,96440.0,0.00100022]
[1733158540839,0.21783028,96441.0,96440.0,0.00100022]
[1733158541048,0.20838,96441.0,96440.0,0.00100022]
[1733158542102,0.35838,96441.0,96440.0,0.00100022]
[1733158543571,0.20838,96441.0,96440.0,0.00100022]
[1733158544624,0.20738,96441.0,96440.0,0.00100022]
[1733158544977,0.20838,96441.0,96440.0,0.00100022]
[1733158545428,0.20738,96441.0,96440.0,2.2e-07]
[1733158545655,0.46022521,96441.0,96440.0,2.2e-07]
[1733158545858,0.47888157,96441.0,96440.0,2.2e-07]
[1733158546065,0.46222521,96441.0,96440.0,2.2e-07]
[1733158546269,0.46022521,96441.0,96440.0,2.2e-07]
[1733158547474,0.46222521,96441.0,96440.0,2.2e-07]
[1733158547631,0.47170175,96441.0,96440.0,2.2e-07]
[1733158548057,0.46970175,96441.0,96440.0,2.2e-07]
[1733158548260,0.47070175,96441.0,96440.0,2.2e-07]
[1733158548854,0.46970175,96441.0,96440.0,2.2e-07]
[1733158549053,0.47070175,96441.0,96440.0,2.2e-07]
[1733158549259,0.46122521,96441.0,96440.0,2.2e-07]
[1733158549460,0.47071121,96441.0,96440.0,2.2e-07]
[1733158549669,0.47071121,96441.0,96440.0,0.00100022]
[1733158550450,0.46971121,96441.0,96440.0,2.2e-07]
[1733158550691,0.66971121,96441.0,96440.0,2.2e-07]
[1733158550899,0.67071121,96441.0,96440.0,2.2e-07]
[1733158551314,0.66971121,96441.0,96440.0,2.2e-07]
[1733158551707,0.47071121,96441.0,96440.0,2.2e-07]
[1733158551931,0.47071121,96441.0,96440.0,0.00100022]
[1733158552157,0.47071121,96441.0,96440.0,2.2e-07]
[1733158552332,0.46971121,96441.0,96440.0,0.00100022]
[1733158552555,0.47071121,96441.0,96440.0,0.00100022]
[1733158552699,0.47072818,96441.0,96440.0,2.2e-07]
[1733158552903,0.47072818,96441.0,96440.0,0.00100022]
[1733158553519,0.79422616,96441.0,96440.0,2.2e-07]
[1733158553739,0.84052616,96441.0,96440.0,2.2e-07]
[1733158553949,0.84052616,96441.0,96426.0,6.2e-07]
[1733158553950,0.557397,96433.0,96426.0,6.2e-07]
[1733158554171,0.207393,96435.0,96426.0,6.2e-07]
[1733158554172,0.70845319,96427.0,96426.0,6.2e-07]
[1733158554409,0.46975818,96427.0,96426.0,6.2e-07]
[1733158555477,0.46875818,96427.0,96426.0,6.2e-07]
[1733158555709,0.46875818,96427.0,96426.0,0.00100062]
[1733158555954,0.46975818,96427.0,96426.0,6.2e-07]
[1733158557040,0.46875818,96427.0,96426.0,6.2e-07]
[1733158557465,0.48159465,96427.0,96426.0,6.2e-07]
[1733158559655,0.47209168,96427.0,96426.0,6.2e-07]
[1733158560064,0.48160095,96427.0,96426.0,6.2e-07]
[1733158560801,0.57359594,96427.0,96426.0,6.2e-07]
[1733158561007,0.51896246,96427.0,96426.0,6.2e-07]
[1733158561213,0.47076448,96427.0,96426.0,6.2e-07]
[1733158563021,0.51896246,96427.0,96426.0,6.2e-07]
[1733158563728,0.51896246,96427.0,96375.0,0.15180202]
[1733158563729,0.20752,96376.0,96375.0,0.15180202]
[1733158563965,0.20752,96376.0,96367.0,0.15180202]
[1733158564170,0.207534,96370.0,96369.0,0.15180202]
[1733158564605,0.415068,96370.0,96367.0,0.15180202]
[1733158565552,0.207534,96370.0,96369.0,0.007]
[1733158565803,0.31037921,96370.0,96369.0,0.007]
[1733158566270,0.46037921,96370.0,96369.0,0.007]
[1733158566963,0.46037921,96370.0,96369.0,0.0078648]
[1733158567809,0.46137921,96370.0,96369.0,0.0078648]
[1733158568047,0.208534,96370.0,96369.0,0.0078648]
[1733158568280,0.208534,96370.0,96369.0,0.01759043]
[1733158568515,0.004,96370.0,96369.0,0.15266682]
[1733158568759,0.004,96370.0,96369.0,0.17566682]
[1733158568996,0.004,96370.0,96369.0,0.17666582]
[1733158569214,0.001,96370.0,96369.0,0.17666582]
[1733158569627,0.001,96370.0,96369.0,0.15366582]
[1733158569844,0.001,96370.0,96369.0,0.0018638]
[1733158570045,0.41506,96372.0,96369.0,0.0018638]
[1733158570248,0.001,96370.0,96369.0,0.0018638]
[1733158570656,0.003,96370.0,96369.0,0.15366582]
[1733158570867,0.41506,96372.0,96369.0,0.0018638]
[1733158571094,0.41506,96372.0,96369.0,0.0038648]
[1733158571533,0.41506,96372.0,96369.0,0.0008648]
[1733158571735,0.357533,96370.0,96369.0,0.0038648]
[1733158571884,0.46037821,96370.0,96369.0,0.0008648]
[1733158572507,0.66037821,96370.0,96369.0,0.0008648]
[1733158572735,0.46037821,96370.0,96369.0,0.0008648]
[1733158573043,0.76320967,96370.0,96369.0,0.0008648]
[1733158573733,0.66037821,96370.0,96369.0,0.0008648]
[1733158573959,0.66337821,96370.0,96369.0,0.0008648]
[1733158574365,0.66437821,96370.0,96369.0,0.0008648]
[1733158574496,0.71417821,96370.0,96369.0,8e-07]
[1733158574709,0.39819798,96366.0,96365.0,2.4e-07]
[1733158574911,0.39819798,96366.0,96348.0,0.0009832]
[1733158574912,0.557555,96360.0,96359.0,1.4e-07]
[1733158575117,0.66040021,96360.0,96359.0,9.9e-07]
[1733158575410,0.78509819,96360.0,96359.0,9.9e-07]
[1733158576084,0.80865662,96360.0,96359.0,9.9e-07]
[1733158576292,0.73690021,96360.0,96359.0,9.9e-07]
[1733158576493,0.81366548,96360.0,96359.0,9.9e-07]
[1733158577312,0.85042268,96360.0,96359.0,9.9e-07]
[1733158577514,1.2230976,96360.0,96359.0,9.9e-07]
[1733158577721,1.23252811,96360.0,96359.0,9.9e-07]
[1733158578132,1.20877091,96360.0,96359.0,9.9e-07]
[1733158578559,0.99386616,96360.0,96359.0,9.9e-07]
[1733158578779,1.18020362,96360.0,96359.0,9.9e-07]
[1733158579198,0.73623767,96360.0,96359.0,0.00086579]
[1733158579397,0.59809819,96360.0,96359.0,0.00086579]
[1733158579553,0.54990021,96360.0,96359.0,0.00086579]
[1733158579754,0.32340021,96360.0,96359.0,0.00086579]
[1733158579971,0.220555,96360.0,96359.0,0.00086579]
[1733158580579,0.215555,96360.0,96359.0,0.00086579]
[1733158580960,0.212555,96360.0,96359.0,0.0008648]
[1733158581413,0.216555,96360.0,96359.0,0.0008648]
[1733158581617,0.212555,96360.0,96359.0,0.0008648]
[1733158582045,0.216555,96360.0,96359.0,0.0008648]
[1733158582241,0.31440021,96360.0,96359.0,0.0008648]
[1733158582647,0.31540021,96360.0,96359.0,0.0008648]
[1733158583050,0.211555,96360.0,96359.0,0.0008648]
[1733158583294,0.207555,96360.0,96359.0,0.0008648]
[1733158583413,0.207555,96360.0,96359.0,0.0018648]
[1733158583621,0.207555,96360.0,96359.0,0.0028648]
[1733158583818,0.207555,96360.0,96359.0,0.15466682]
[1733158585079,0.52266451,96360.0,96359.0,0.0028648]
[1733158585501,0.60576451,96360.0,96359.0,0.0028648]
[1733158586061,0.61521197,96360.0,96359.0,0.0018648]
[1733158586278,0.86540995,96360.0,96359.0,8e-07]
[1733158586492,0.357589,96344.0,96335.0,0.0008645]
[1733158586708,0.207589,96344.0,96343.0,0.15276407]
[1733158587150,0.207576,96350.0,96349.0,0.15180202]
[1733158587596,0.207566,96355.0,96354.0,0.15180202]
[1733158588785,0.207566,96355.0,96350.0,0.15180202]
[1733158589010,0.207576,96350.0,96347.0,0.0009877]
[1733158589411,0.415153,96350.0,96347.0,0.0009877]
[1733158590210,0.415153,96350.0,96347.0,0.0029877]
[1733158590531,0.20758,96348.0,96347.0,0.004]
[1733158590739,0.46042521,96348.0,96347.0,0.004]
[1733158591094,0.46042521,96348.0,96347.0,0.002]
[1733158591547,0.207589,96344.0,96343.0,0.00096205]
[1733158591755,0.31043421,96344.0,96343.0,0.00096205]
[1733158592185,0.39819413,96344.0,96343.0,0.00096205]
[1733158592720,0.31043421,96344.0,96343.0,0.00096205]
[1733158593503,0.31143421,96344.0,96343.0,0.00096205]
[1733158594814,0.32091689,96344.0,96343.0,0.00096205]
[1733158595528,0.47091712,96344.0,96343.0,0.00096205]
[1733158596817,0.5191151,96344.0,96343.0,5e-08]
[1733158597020,0.62194656,96344.0,96343.0,5e-08]
[1733158597879,0.5191151,96344.0,96343.0,5e-08]
[1733158598924,0.47091712,96344.0,96343.0,5e-08]
[1733158601460,0.67091712,96344.0,96343.0,5e-08]
[1733158604259,0.47091712,96344.0,96343.0,0.00086545]
[1733158605542,0.46143421,96344.0,96343.0,0.00086545]
[1733158605742,0.47092801,96344.0,96343.0,0.00086545]
[1733158607456,0.2180828,96344.0,96343.0,0.00086545]
[1733158607667,0.208589,96344.0,96343.0,0.15266747]
[1733158608092,0.208589,96344.0,96343.0,0.00086545]
[1733158611385,0.4709418,96344.0,96343.0,0.00086545]
[1733158612416,0.47093979,96344.0,96343.0,0.00086545]
[1733158615590,0.46143421,96344.0,96343.0,0.00086545]
[1733158615812,0.47094613,96344.0,96343.0,0.00086545]
[1733158617449,0.47267713,96344.0,96343.0,0.00086545]
[1733158618376,0.21983192,96344.0,96343.0,0.15266747]
[1733158619107,0.21032,96344.0,96343.0,0.15266747]
[1733158619559,0.21983708,96344.0,96343.0,0.15266747]
[1733158619766,0.002731,96344.0,96343.0,0.24473422]
[1733158619972,0.0017308,96359.0,96358.0,0.15180202]
[1733158620406,0.0017308,96359.0,96358.0,0.15957408]
[1733158620825,0.207585,96346.0,96345.0,0.15180202]
[1733158621034,0.207585,96346.0,96345.0,0.15957431]
[1733158621682,0.207585,96346.0,96345.0,0.15180202]
[1733158621931,0.207585,96346.0,96345.0,0.16859544]
[1733158622132,0.207585,96346.0,96345.0,0.15180202]
[1733158622544,0.207585,96346.0,96345.0,0.15680202]
[1733158622759,0.207585,96346.0,96345.0,0.005]
[1733158623124,0.208585,96346.0,96345.0,0.013]
[1733158623503,0.001,96346.0,96345.0,0.18136877]
[1733158625213,0.001,96346.0,96345.0,0.013]
[1733158626466,0.00950867,96347.0,96346.0,0.024]
[1733158626886,0.10284521,96347.0,96346.0,0.024]
[1733158627367,0.11235301,96347.0,96346.0,0.024]
[1733158627794,0.0095078,96347.0,96346.0,0.024]
[1733158628644,0.0105078,96347.0,96346.0,0.032]
[1733158628898,0.26335301,96347.0,96346.0,0.032]
[1733158629581,0.26235301,96347.0,96346.0,0.024]
[1733158629792,0.26408401,96347.0,96346.0,0.024]
[1733158632524,0.1612388,96347.0,96346.0,0.024]
[1733158632727,0.1682388,96347.0,96346.0,0.025]
[1733158633214,0.1682388,96347.0,96346.0,0.029]
[1733158633404,0.1612388,96347.0,96346.0,0.028]
[1733158633554,0.1612388,96347.0,96346.0,0.024]
[1733158633770,0.1682388,96347.0,96346.0,0.025]
[1733158633970,0.1722388,96347.0,96346.0,0.025]
[1733158634193,0.27508401,96347.0,96346.0,0.025]
[1733158634572,0.26557621,96347.0,96346.0,0.025]
[1733158634796,0.27508486,96347.0,96346.0,0.025]
[1733158635655,0.26808486,96347.0,96346.0,0.024]
[1733158635884,0.27508486,96347.0,96346.0,0.025]
[1733158636618,0.25008486,96347.0,96346.0,0.025]
[1733158636886,0.14723965,96347.0,96346.0,0.025]
[1733158637118,0.25008486,96347.0,96346.0,0.025]
[1733158637329,0.14723965,96347.0,96346.0,0.025]
[1733158637969,0.1472397,96347.0,96346.0,0.025]
[1733158638289,0.0222397,96347.0,96346.0,0.17680202]
[1733158638495,0.0222397,96347.0,96346.0,0.22650202]
[1733158638701,0.220314,96347.0,96346.0,0.22650202]
[1733158638910,0.220314,96347.0,96346.0,0.25685877]
[1733158639122,0.209314,96347.0,96346.0,0.25585877]
[1733158639337,0.001731,96347.0,96346.0,0.25585877]
[1733158639548,0.012731,96347.0,96346.0,0.25685877]
[1733158639783,0.005731,96347.0,96346.0,0.17580202]
[1733158639984,0.001731,96347.0,96346.0,0.17580202]
[1733158640238,0.001731,96347.0,96346.0,0.17680202]
[1733158640491,0.001731,96347.0,96346.0,0.19980202]
[1733158640693,0.209314,96347.0,96346.0,0.17880202]
[1733158641176,0.209314,96347.0,96346.0,0.20438877]
[1733158641470,0.209314,96347.0,96346.0,0.17880202]
[1733158641696,0.209314,96347.0,96346.0,0.17966742]
[1733158643975,0.001731,96347.0,96346.0,0.17966742]
[1733158644185,0.001731,96347.0,96346.0,0.30551263]
[1733158644416,0.207522,96376.0,96358.0,0.15180202]
[1733158644620,0.18254485,96405.0,96346.0,0.39951061]
[1733158644621,0.09127242,96408.0,96377.0,0.15180202]
[1733158644859,0.207474,96398.0,96395.0,0.15180202]
[1733158645073,0.11235613,96407.0,96399.0,0.15180202]
[1733158645074,0.20747,96400.0,96399.0,0.15180202]
[1733158645285,0.20747,96400.0,96382.0,0.0814]
[1733158645286,0.20745,96409.0,96408.0,0.15180202]
[1733158645498,0.207425,96420.0,96419.0,0.15180202]
[1733158645706,0.207425,96420.0,96403.0,0.15180202]
[1733158645707,0.1123499,96420.0,96403.0,0.15180202]
[1733158645923,0.207466,96401.0,96400.0,0.16698222]
[1733158646147,0.21697069,96401.0,96400.0,0.16698222]
[1733158646360,0.207466,96401.0,96400.0,0.16698222]
[1733158646581,0.207466,96401.0,96400.0,0.0151802]
[1733158646791,0.207466,96401.0,96385.0,0.15180202]
[1733158646792,0.207479,96395.0,96385.0,0.15180202]
[1733158646997,0.20749,96390.0,96389.0,0.15180202]
[1733158647224,0.20749,96390.0,96373.0,0.00183641]
[1733158647225,0.207481,96394.0,96393.0,0.15180202]
[1733158647860,0.207458,96405.0,96404.0,0.15180202]
[1733158648916,0.207458,96405.0,96400.0,0.15180202]
[1733158649110,0.207462,96403.0,96402.0,0.15180202]
[1733158649223,0.207462,96403.0,96399.0,0.15180202]
[1733158649431,0.207465,96402.0,96401.0,0.15180202]
[1733158650312,0.00058871,96409.0,96401.0,0.15180202]
[1733158650313,0.20746,96404.0,96401.0,0.15180202]
[1733158650521,0.00058871,96409.0,96404.0,0.15180202]
[1733158650689,0.207454,96407.0,96404.0,0.15180202]
[1733158651300,0.207455,96406.0,96404.0,0.15180202]
[1733158652360,0.207464,96402.0,96401.0,0.003]
[1733158652517,0.357464,96402.0,96394.0,0.15180202]
[1733158652719,0.207479,96395.0,96394.0,0.15180202]
[1733158652921,0.207482,96394.0,96391.0,0.15180202]
[1733158653181,0.33633434,96401.0,96389.0,0.15180202]
[1733158653505,0.18633434,96399.0,96389.0,0.15180202]
[1733158653694,0.15,96398.0,96389.0,0.15180202]
[1733158653929,0.207495,96388.0,96382.0,0.15180202]
[1733158654154,0.207495,96388.0,96387.0,0.15180202]
[1733158656320,0.207495,96388.0,96387.0,0.15280202]
[1733158656612,0.207495,96388.0,96387.0,0.15380202]
[1733158657615,0.207495,96388.0,96387.0,0.16918222]
[1733158658550,0.182495,96388.0,96387.0,0.16918222]
[1733158658787,0.182495,96388.0,96387.0,0.002]
[1733158661138,0.182495,96388.0,96387.0,0.15380202]
[1733158661767,0.182495,96388.0,96387.0,0.002]
[1733158662270,0.182495,96388.0,96387.0,0.15380202]
[1733158662524,0.207491,96390.0,96389.0,0.15180202]
[1733158663361,0.207485,96393.0,96392.0,0.15180202]
[1733158663805,0.207474,96398.0,96397.0,0.15180202]
[1733158664361,0.0017306,96402.0,96391.0,0.0791]
[1733158664362,0.0017306,96402.0,96400.0,0.15180202]
[1733158664564,0.0017306,96402.0,96391.0,0.0791]
[1733158664565,0.0017306,96402.0,96401.0,0.15180202]
[1733158664775,0.0017306,96402.0,96400.0,0.15180202]
[1733158665168,0.0017306,96402.0,96389.0,0.0009913]
[1733158665169,0.0017306,96402.0,96393.0,0.15180202]
[1733158665391,0.207466,96401.0,96399.0,0.15180202]
[1733158665602,0.207469,96400.0,96399.0,0.15180202]
[1733158666993,0.207477,96396.0,96395.0,0.15180202]
[1733158667239,0.207477,96396.0,96393.0,0.15180202]
[1733158667240,0.414955,96396.0,96393.0,0.15180202]
[1733158667451,0.414955,96396.0,96395.0,0.15180202]
[1733158667452,0.207477,96396.0,96395.0,0.15180202]
[1733158668155,0.207477,96396.0,96395.0,0.16708135]
[1733158668607,0.207471,96399.0,96398.0,0.15180202]
[1733158669788,0.211471,96399.0,96398.0,0.15180202]
[1733158670037,0.213471,96399.0,96398.0,0.15180202]
[1733158670948,0.006,96399.0,96398.0,0.15180202]
[1733158671200,0.006,96399.0,96398.0,0.27764723]
[1733158671449,0.006,96399.0,96398.0,0.35914723]
[1733158671939,0.004,96399.0,96398.0,0.35914723]
[1733158672164,0.0017306,96402.0,96399.0,0.230471]
[1733158672415,0.0017306,96402.0,96401.0,0.17578252]
[1733158672650,0.0017306,96402.0,96401.0,0.27862773]
[1733158672913,0.0017306,96402.0,96401.0,0.25562773]
[1733158673827,0.0017306,96402.0,96401.0,0.26162773]
[1733158674083,0.0017306,96402.0,96401.0,0.15878252]
[1733158676036,0.0017306,96402.0,96401.0,0.16778252]
[1733158676737,0.0017306,96402.0,96401.0,0.0069805]
[1733158676959,0.0017306,96402.0,96401.0,0.0029805]
[1733158677181,0.0017306,96402.0,96401.0,0.002]
[1733158677656,0.26406854,96402.0,96401.0,0.002]
[1733158677894,0.31186854,96402.0,96401.0,0.002]
[1733158678162,0.31186854,96402.0,96401.0,0.003]
[1733158678607,0.414186,96392.0,96391.0,0.0009931]
[1733158678886,0.33454521,96392.0,96388.0,0.000865]
[1733158679125,0.46033421,96391.0,96388.0,0.000865]
[1733158679378,0.00949128,96390.0,96388.0,0.000865]
[1733158679632,0.357492,96389.0,96388.0,0.000865]
[1733158679849,0.46982849,96389.0,96388.0,0.000865]
[1733158680636,0.36698328,96389.0,96388.0,0.000865]
[1733158680826,0.36698328,96389.0,96388.0,0.15266702]
[1733158681091,0.21698328,96389.0,96388.0,0.16793372]
[1733158681310,0.207489,96391.0,96390.0,0.15180202]
[1733158682698,0.207489,96391.0,96390.0,0.15380202]
[1733158682939,0.207489,96391.0,96390.0,0.15180202]
[1733158683169,0.207489,96391.0,96390.0,0.15380202]
[1733158683377,0.207489,96391.0,96390.0,0.15580202]
[1733158683801,0.207489,96391.0,96390.0,0.002]
[1733158684014,0.46033421,96391.0,96390.0,0.002]
[1733158684243,0.357492,96389.0,96388.0,0.000865]
[1733158684467,0.46982594,96389.0,96388.0,0.000865]
[1733158685564,0.47382594,96389.0,96388.0,0.000865]
[1733158686209,0.47582594,96389.0,96388.0,0.000865]
[1733158686874,0.48666599,96389.0,96388.0,0.000865]
[1733158687520,0.415093,96364.0,96360.0,0.15266732]
[1733158687972,0.415093,96364.0,96360.0,0.0008653]
[1733158688217,0.25284521,96363.0,96360.0,0.0008653]
[1733158688501,0.15,96361.0,96360.0,0.0008653]
[1733158688723,0.15,96361.0,96360.0,0.0058653]
[1733158689352,0.15,96361.0,96360.0,0.0008653]
[1733158689791,0.151,96361.0,96360.0,0.0008653]
[1733158692407,0.151,96361.0,96360.0,0.16793405]
[1733158692622,0.151,96361.0,96360.0,0.15266732]
[1733158692850,0.001,96361.0,96360.0,0.15266732]
[1733158693290,0.001,96361.0,96360.0,0.0008653]
[1733158693849,0.10384521,96361.0,96360.0,0.0008653]
[1733158694619,0.151,96361.0,96360.0,0.15266732]
[1733158695062,0.151,96361.0,96360.0,0.0008653]
[1733158698588,0.25384521,96361.0,96360.0,0.0008653]
[1733158700846,0.25384521,96361.0,96360.0,0.15266732]
[1733158700847,0.001,96361.0,96360.0,0.15266732]
[1733158704734,0.001,96361.0,96360.0,0.25551253]
[1733158704961,0.0778,96410.0,96391.0,0.15180202]
[1733158705185,0.00948666,96409.0,96391.0,0.15180202]
[1733158705421,0.048,96428.0,96391.0,0.15180202]
[1733158705422,0.00231871,96392.0,96391.0,0.25648312]
[1733158705635,0.00231871,96392.0,96391.0,0.25464723]
[1733158705857,0.00231871,96392.0,96391.0,0.19006674]
[1733158706099,0.00231871,96392.0,96368.0,0.079]
[1733158706322,0.207511,96380.0,96379.0,0.15180202]
[1733158706550,0.415023,96380.0,96379.0,0.15180202]
[1733158706795,0.20755,96362.0,96361.0,0.16706875]
[1733158707014,0.20755,96362.0,96361.0,0.15180202]
[1733158708353,0.20755,96362.0,96361.0,0.15480202]
[1733158708778,0.20755,96362.0,96361.0,0.003]
[1733158708998,0.35755,96362.0,96361.0,0.008]
[1733158709903,0.35755,96362.0,96361.0,0.003]
[1733158710118,0.35755,96362.0,96361.0,0.004]
[1733158710330,0.35755,96362.0,96361.0,0.001]
[1733158710565,0.46039521,96362.0,96361.0,0.002]
[1733158710759,0.55038854,96362.0,96361.0,0.002]
[1733158710978,0.55038854,96362.0,96361.0,0.027]
[1733158711200,0.55038854,96362.0,96361.0,0.026]
[1733158711410,0.55038854,96362.0,96361.0,0.027]
[1733158711851,0.55038854,96362.0,96361.0,0.026]
[1733158712306,0.60018854,96362.0,96361.0,0.025]
[1733158712527,0.15,96361.0,96360.0,3e-07]
[1733158712744,0.26233854,96361.0,96360.0,3e-07]
[1733158713187,0.432883,96347.0,96346.0,7e-07]
[1733158713441,0.63408664,96347.0,96346.0,9.864e-05]
[1733158713659,0.63408664,96347.0,96346.0,6.4e-07]
[1733158713887,0.54522154,96347.0,96346.0,6.4e-07]
[1733158715041,0.54522154,96347.0,96343.0,0.0008654]
[1733158715042,0.357585,96346.0,96343.0,4e-08]
[1733158715267,0.357589,96344.0,96343.0,4e-08]
[1733158715489,0.46992754,96344.0,96343.0,4e-08]
[1733158716439,0.357606,96336.0,96335.0,5.4e-07]
[1733158716665,0.357606,96336.0,96326.0,5.4e-07]
[1733158716666,0.15,96327.0,96326.0,5.4e-07]
[1733158716897,0.46996454,96327.0,96321.0,0.0008662]
[1733158717126,0.357636,96322.0,96321.0,0.0008662]
[1733158717375,0.572806,96322.0,96320.0,0.08027866]
[1733158717622,0.34333854,96321.0,96320.0,0.08027866]
[1733158719006,0.34533854,96321.0,96320.0,0.08027866]
[1733158719473,0.34633854,96321.0,96320.0,0.08027866]
[1733158720701,0.34633854,96321.0,96320.0,0.03875066]
[1733158721406,0.34633854,96321.0,96320.0,6.6e-07]
[1733158722963,0.153,96321.0,96320.0,6.6e-07]
[1733158724707,0.153,96321.0,96320.0,0.00086596]
[1733158727851,0.003,96321.0,96320.0,0.15266798]
[1733158728074,0.003,96321.0,96320.0,0.33753627]
[1733158728290,0.003,96321.0,96320.0,0.53569889]
[1733158728508,0.003,96321.0,96320.0,0.55869889]
[1733158728728,0.001,96321.0,96320.0,0.55869889]
[1733158728953,0.207552,96361.0,96360.0,0.15180202]
[1733158729214,0.207541,96367.0,96360.0,0.15180202]
[1733158729477,0.00190749,96362.0,96361.0,0.15180202]
[1733158730424,0.00190749,96362.0,96361.0,0.46403583]
[1733158730638,0.00190749,96362.0,96361.0,0.45464723]
[1733158731503,0.00190749,96362.0,96361.0,0.15180202]
[1733158731976,0.00290749,96362.0,96361.0,0.16680202]
[1733158733344,0.00290749,96362.0,96361.0,0.015]
[1733158734463,0.1057527,96362.0,96361.0,0.015]
[1733158734686,0.15,96361.0,96342.0,0.15180202]
[1733158734901,0.15,96342.0,96341.0,0.15180202]
[1733158735388,0.357594,96342.0,96341.0,0.15180202]
[1733158735853,0.39390834,96351.0,96336.0,0.15180202]
[1733158735854,0.15,96350.0,96336.0,0.15180202]
[1733158736075,0.18633434,96340.0,96336.0,0.15180202]
[1733158736283,0.4152,96339.0,96336.0,0.15180202]
[1733158736489,0.10284521,96338.0,96331.0,0.15180202]
[1733158736692,0.10284521,96338.0,96312.0,0.0468]
[1733158736693,0.207619,96330.0,96329.0,0.15180202]
[1733158736983,0.207619,96330.0,96327.0,0.15180202]
[1733158737241,0.207619,96330.0,96307.0,0.0812]
[1733158737242,0.20763,96325.0,96324.0,0.15180202]
[1733158737466,0.20763,96325.0,96323.0,0.15180202]
[1733158737693,0.20763,96325.0,96324.0,0.15180202]
[1733158737959,0.15,96324.0,96297.0,0.0487]
[1733158738174,0.207635,96323.0,96320.0,0.00104232]
[1733158738383,0.41527,96323.0,96320.0,0.00104232]
[1733158740097,0.357639,96321.0,96320.0,0.00104232]
[1733158740307,0.357639,96321.0,96320.0,0.15284434]
[1733158740527,0.357639,96321.0,96320.0,0.00204232]
[1733158740974,0.357639,96321.0,96320.0,0.00104232]
[1733158741212,0.357639,96321.0,96320.0,0.00204232]
[1733158742707,0.53777441,96321.0,96320.0,0.00204232]
[1733158742920,0.53977441,96321.0,96320.0,0.00204232]
[1733158743131,0.207662,96310.0,96309.0,0.13764483]
[1733158743561,0.207659,96312.0,96306.0,0.13863653]
[1733158743774,0.207659,96312.0,96306.0,0.0009917]
[1733158743775,0.15,96308.0,96306.0,0.0009917]
[1733158743985,0.207678,96303.0,96300.0,0.13764483]
[1733158744198,0.207682,96301.0,96300.0,0.13764483]
[1733158745341,0.207682,96301.0,96300.0,0.14264483]
[1733158745551,0.208682,96301.0,96300.0,0.15064483]
[1733158746659,0.208682,96301.0,96300.0,0.013]
[1733158746892,0.208682,96301.0,96300.0,0.15064483]
[1733158748795,0.001,96301.0,96300.0,0.23084483]
[1733158749009,0.001,96301.0,96300.0,0.33369004]
[1733158749231,0.001,96301.0,96300.0,0.19502721]
[1733158749436,0.001,96301.0,96300.0,0.33267204]